bitfinex/quotes_BTCUSD_20250527
["timestamp","ask_amount","ask_price","bid_price","bid_amount"]
[1748355029399,0.07538116,110110.0,110100.0,3.25390906]
[1748355029625,0.27518135,110110.0,110100.0,1.91693364]
[1748355029862,0.07538116,110110.0,110100.0,2.37555098]
[1748355030101,0.09354423,110110.0,110100.0,2.37555098]
[1748355030322,0.09354423,110110.0,110100.0,3.75403898]
[1748355030499,0.27518135,110110.0,110100.0,2.34821452]
[1748355030718,0.27518135,110110.0,110100.0,2.7107544]
[1748355030934,0.08446307,110110.0,110100.0,2.79066447]
[1748355031166,0.08446307,110110.0,110100.0,3.09114347]
[1748355031382,0.09354398,110110.0,110100.0,3.24449942]
[1748355031602,0.09354398,110110.0,110100.0,3.74190942]
[1748355031853,0.08446241,110110.0,110100.0,3.93139642]
[1748355032047,0.2842621,110110.0,110100.0,3.85928435]
[1748355032258,0.2842621,110110.0,110100.0,2.88677035]
[1748355032461,0.2842621,110110.0,110100.0,2.89399342]
[1748355032679,0.19725666,110120.0,110110.0,0.20888101]
[1748355032680,0.0156364,110120.0,110110.0,0.20888101]
[1748355032901,0.0773364,110120.0,110110.0,2.84750047]
[1748355033114,0.0773364,110120.0,110110.0,2.77449047]
[1748355033341,0.0773364,110120.0,110110.0,3.17449047]
[1748355033573,0.09549733,110120.0,110110.0,2.67838047]
[1748355033790,0.08641674,110120.0,110110.0,2.67838047]
[1748355033998,0.07848471,110120.0,110110.0,5.50433347]
[1748355034203,0.07848471,110120.0,110110.0,5.27518447]
[1748355034433,0.07748471,110120.0,110110.0,4.89875647]
[1748355035118,0.07748471,110120.0,110110.0,5.41841247]
[1748355035325,0.07748471,110120.0,110110.0,5.34540247]
[1748355035543,0.07748471,110120.0,110110.0,5.34640247]
[1748355035926,0.07748471,110120.0,110110.0,5.34640047]
[1748355036449,0.07748471,110120.0,110110.0,5.11240047]
[1748355036660,0.07748471,110120.0,110110.0,4.72700047]
[1748355036869,0.07748471,110120.0,110110.0,5.45236047]
[1748355037099,0.07748471,110120.0,110110.0,5.02033991]
[1748355037310,0.07748471,110120.0,110110.0,3.81848647]
[1748355038138,0.07748471,110120.0,110110.0,3.39041647]
[1748355038349,0.07748471,110120.0,110110.0,3.30086347]
[1748355038800,0.07748471,110120.0,110110.0,3.30082347]
[1748355039013,0.07748471,110120.0,110110.0,3.60984147]
[1748355039435,0.07748471,110120.0,110110.0,3.63707347]
[1748355040079,0.07748471,110120.0,110110.0,3.68290947]
[1748355040331,0.07748471,110120.0,110110.0,3.69734349]
[1748355040564,0.0956458,110120.0,110110.0,2.95469811]
[1748355040785,0.10472663,110120.0,110110.0,3.08813011]
[1748355041002,0.27726659,110120.0,110110.0,0.65849053]
[1748355041230,0.27726659,110120.0,110110.0,1.10489046]
[1748355041231,0.27726618,110120.0,110110.0,1.10489046]
[1748355041458,0.2863471,110120.0,110110.0,1.49013046]
[1748355041673,0.2863471,110120.0,110110.0,1.04967833]
[1748355041889,0.26818568,110120.0,110110.0,1.48104889]
[1748355042144,0.26818568,110120.0,110110.0,1.11397212]
[1748355042352,0.19985405,110080.0,110070.0,0.09105395]
[1748355042570,0.19985405,110080.0,110060.0,0.00976046]
[1748355042571,0.26427255,110070.0,110060.0,0.00976046]
[1748355042803,0.26427255,110070.0,110040.0,0.52669056]
[1748355042804,0.24611906,110060.0,110040.0,0.52669056]
[1748355043032,0.20899507,110050.0,110040.0,0.83583412]
[1748355043262,0.20899507,110050.0,110040.0,2.86624255]
[1748355043490,0.20899507,110050.0,110040.0,1.77802394]
[1748355043715,0.02725942,110050.0,110040.0,2.22756871]
[1748355043952,0.10074182,110060.0,110050.0,4.0637499]
[1748355044162,0.06744174,110060.0,110050.0,4.58040569]
[1748355044366,0.05835653,110060.0,110050.0,4.31345357]
[1748355044575,0.05835653,110060.0,110050.0,4.74450752]
[1748355044787,0.0674424,110060.0,110050.0,4.31459552]
[1748355044993,0.00908496,110070.0,110060.0,0.20897576]
[1748355045233,0.02725404,110070.0,110060.0,3.63718764]
[1748355045440,0.00908454,110070.0,110060.0,3.81446364]
[1748355045657,0.03633901,110070.0,110060.0,4.51263038]
[1748355045868,0.02725396,110070.0,110060.0,4.51263038]
[1748355046289,0.00908454,110070.0,110060.0,4.51263038]
[1748355046517,0.01816925,110070.0,110060.0,4.51263038]
[1748355046714,0.00908454,110070.0,110060.0,5.07098238]
[1748355047757,0.01816917,110070.0,110060.0,5.47098238]
[1748355048629,0.27031905,110090.0,110080.0,0.20893819]
[1748355048846,0.27031905,110090.0,110080.0,1.0995198]
[1748355049067,0.06733199,110090.0,110080.0,4.69800147]
[1748355049276,0.06733199,110090.0,110080.0,4.54078447]
[1748355049483,0.06733199,110090.0,110080.0,5.02532347]
[1748355049706,0.06733199,110090.0,110080.0,5.04346347]
[1748355049919,0.06833199,110090.0,110080.0,5.04395805]
[1748355050140,0.06833199,110090.0,110080.0,4.18654205]
[1748355050375,0.07033199,110090.0,110080.0,4.18654205]
[1748355050626,0.21257688,110110.0,110090.0,0.34]
[1748355050627,0.14077321,110110.0,110090.0,0.34]
[1748355050836,0.21428225,110100.0,110090.0,0.79155456]
[1748355051050,0.21428225,110100.0,110090.0,1.38154756]
[1748355051480,0.2288231,110100.0,110090.0,0.360184]
[1748355051704,0.2288231,110100.0,110090.0,0.652104]
[1748355053012,0.21428225,110100.0,110090.0,1.08347456]
[1748355053681,0.24938225,110100.0,110090.0,1.08347456]
[1748355054145,0.24938225,110100.0,110090.0,0.74347456]
[1748355054796,0.0677,110100.0,110090.0,2.38995252]
[1748355055015,0.0949467,110100.0,110090.0,2.3808698]
[1748355055229,0.0949467,110100.0,110090.0,2.25994249]
[1748355055449,0.1040291,110100.0,110090.0,2.28719174]
[1748355055655,0.08586422,110100.0,110090.0,2.28719174]
[1748355056301,0.004,110100.0,110090.0,5.18894474]
[1748355056513,0.004,110100.0,110090.0,5.06507074]
[1748355057173,0.01308199,110100.0,110090.0,5.01271074]
[1748355057400,0.01108199,110100.0,110090.0,4.89970074]
[1748355057586,0.002,110100.0,110090.0,4.89970074]
[1748355057797,0.2414814,110110.0,110100.0,0.19981775]
[1748355058010,0.2414814,110110.0,110100.0,2.00882541]
[1748355058683,0.2414814,110110.0,110100.0,1.51362141]
[1748355059321,0.2414814,110110.0,110100.0,1.50453926]
[1748355059509,0.2424814,110110.0,110100.0,1.50453926]
[1748355059710,0.06084456,110110.0,110100.0,1.51362133]
[1748355059931,0.06184456,110110.0,110100.0,1.51362133]
[1748355060135,0.2434811,110110.0,110100.0,1.50453926]
[1748355060363,0.06184456,110110.0,110100.0,1.51362133]
[1748355060584,0.25256284,110110.0,110100.0,1.51362133]
[1748355061123,0.25256284,110110.0,110100.0,1.50453926]
[1748355061300,0.26164466,110110.0,110100.0,1.91362141]
[1748355061510,0.0709263,110110.0,110100.0,1.91362141]
[1748355061844,0.0709263,110110.0,110100.0,1.92270348]
[1748355062408,0.25256284,110110.0,110100.0,1.90453935]
[1748355062809,0.25256284,110110.0,110100.0,1.92270365]
[1748355062970,0.26164466,110110.0,110100.0,1.92270365]
[1748355063800,0.26164466,110110.0,110100.0,1.93353036]
[1748355064410,0.26164466,110110.0,110100.0,1.89720126]
[1748355064647,0.0709263,110110.0,110100.0,1.90628374]
[1748355064850,0.25256284,110110.0,110100.0,1.87958391]
[1748355065607,0.23439994,110110.0,110100.0,1.87958391]
[1748355065814,0.25581828,110110.0,110100.0,1.19747766]
[1748355066025,0.25581828,110110.0,110100.0,0.01082671]
[1748355066026,0.27035913,110110.0,110100.0,0.01082671]
[1748355066261,0.26303591,110090.0,110080.0,0.07446563]
[1748355066471,0.26303591,110090.0,110080.0,0.00049458]
[1748355067342,0.27757676,110090.0,110080.0,0.00049458]
[1748355067556,0.27757676,110090.0,110080.0,0.29233458]
[1748355067765,0.36863071,110090.0,110080.0,0.00049458]
[1748355068186,0.36863071,110090.0,110080.0,0.34049458]
[1748355068392,0.27757676,110090.0,110080.0,0.86291909]
[1748355068595,0.26303591,110090.0,110080.0,0.86291909]
[1748355069850,0.26303591,110090.0,110080.0,0.86391909]
[1748355070891,0.26303591,110090.0,110080.0,1.17575909]
[1748355072038,0.26303591,110090.0,110080.0,0.88391909]
[1748355072252,0.27757676,110090.0,110080.0,0.45254853]
[1748355072478,0.36863071,110090.0,110080.0,0.36149458]
[1748355072711,0.36863071,110090.0,110080.0,0.65333458]
[1748355074378,0.27757676,110090.0,110080.0,1.08470514]
[1748355074577,0.2684937,110090.0,110080.0,1.08470514]
[1748355075478,0.2684937,110090.0,110080.0,1.09555583]
[1748355075722,0.2684937,110090.0,110080.0,1.18660978]
[1748355076150,0.2684937,110090.0,110080.0,0.75523922]
[1748355076419,0.2684937,110090.0,110080.0,0.46339922]
[1748355076676,0.2684937,110090.0,110080.0,0.75519922]
[1748355077146,0.2684937,110090.0,110080.0,0.46339922]
[1748355077384,0.35954765,110090.0,110080.0,0.03234527]
[1748355077596,0.35954765,110090.0,110080.0,0.02149458]
[1748355078278,0.35954765,110090.0,110080.0,0.02049458]
[1748355078521,0.36254765,110090.0,110080.0,0.02049458]
[1748355078733,0.36254765,110090.0,110080.0,0.05654404]
[1748355079225,0.36254765,110090.0,110080.0,0.4879146]
[1748355079226,0.2714937,110090.0,110080.0,0.4879146]
[1748355079617,0.25695285,110090.0,110080.0,0.34834404]
[1748355080069,0.25695285,110090.0,110080.0,0.68834404]
[1748355080274,0.25995285,110090.0,110080.0,0.68834404]
[1748355081140,0.25395285,110090.0,110080.0,0.68834404]
[1748355081360,0.25795285,110090.0,110080.0,0.68834404]
[1748355082127,0.25795285,110090.0,110080.0,1.1197146]
[1748355082355,0.3490068,110090.0,110080.0,0.68834404]
[1748355083106,0.3490068,110090.0,110080.0,0.39654404]
[1748355083292,0.3490068,110090.0,110080.0,0.68834404]
[1748355083714,0.3490068,110090.0,110080.0,0.34834404]
[1748355084726,0.36354765,110090.0,110080.0,0.34834404]
[1748355085160,0.36354765,110090.0,110080.0,0.05654404]
[1748355085780,0.36354765,110090.0,110080.0,0.02049458]
[1748355089600,0.25795285,110090.0,110080.0,0.79186514]
[1748355090468,0.22735285,110090.0,110080.0,1.08362514]
[1748355090693,0.22735285,110090.0,110080.0,0.65225458]
[1748355090913,0.25735285,110090.0,110080.0,0.36049458]
[1748355091140,0.25735285,110090.0,110080.0,0.72639139]
[1748355091984,0.25735285,110090.0,110080.0,1.15776195]
[1748355092253,0.36294765,110090.0,110080.0,0.43463139]
[1748355092946,0.36294765,110090.0,110080.0,0.09463139]
[1748355094818,0.36294765,110090.0,110080.0,0.02049458]
[1748355105296,0.36294765,110090.0,110080.0,0.45186514]
[1748355105517,0.19475285,110090.0,110080.0,0.74354514]
[1748355106573,0.19475285,110090.0,110080.0,0.31217458]
[1748355106783,0.22765285,110090.0,110080.0,0.31217458]
[1748355107001,0.22765285,110090.0,110080.0,0.40322853]
[1748355107215,0.01308298,110090.0,110080.0,0.72460513]
[1748355107443,0.03124901,110090.0,110080.0,2.529979]
[1748355107651,0.04033224,110090.0,110080.0,2.426852]
[1748355107857,0.04941563,110090.0,110080.0,2.426852]
[1748355108062,0.23108517,110090.0,110080.0,2.230326]
[1748355108296,0.22200285,110090.0,110080.0,2.17495128]
[1748355110041,0.22200285,110090.0,110080.0,2.14375128]
[1748355110860,0.03124925,110090.0,110080.0,2.152835]
[1748355111070,0.004,110090.0,110080.0,2.956835]
[1748355111317,0.004,110090.0,110080.0,5.94932295]
[1748355112055,0.01308281,110090.0,110080.0,5.93466895]
[1748355112288,0.01308281,110090.0,110080.0,5.04453195]
[1748355112706,0.21798291,110100.0,110090.0,0.53983591]
[1748355112920,0.21798214,110100.0,110090.0,1.93891131]
[1748355113125,0.21798214,110100.0,110090.0,1.90205231]
[1748355113331,0.21798214,110100.0,110090.0,2.30205231]
[1748355114197,0.21898214,110100.0,110090.0,2.30205231]
[1748355115068,0.21898214,110100.0,110090.0,2.29296942]
[1748355116611,0.21898214,110100.0,110090.0,1.06226042]
[1748355116837,0.21898214,110100.0,110090.0,1.06402307]
[1748355117064,0.20990024,110100.0,110090.0,1.47310637]
[1748355117317,0.20990024,110100.0,110090.0,0.84189966]
[1748355117529,0.19173569,110100.0,110090.0,1.05493976]
[1748355117736,0.19173569,110100.0,110090.0,1.06402323]
[1748355117948,0.19173569,110100.0,110090.0,1.08218993]
[1748355118162,0.19173569,110100.0,110090.0,1.09127315]
[1748355118387,0.001,110100.0,110090.0,1.10035571]
[1748355118609,0.03732893,110100.0,110090.0,1.51707571]
[1748355119052,0.22806453,110100.0,110090.0,1.91707571]
[1748355119271,0.22806528,110100.0,110090.0,1.88503571]
[1748355119486,0.21898313,110100.0,110090.0,1.87595282]
[1748355119940,0.21898313,110100.0,110090.0,1.4264159]
[1748355120188,0.20990073,110100.0,110090.0,1.86686968]
[1748355120404,0.20990073,110100.0,110090.0,1.87595282]
[1748355120832,0.20990073,110100.0,110090.0,1.49127282]
[1748355121014,0.20990073,110100.0,110090.0,1.46686968]
[1748355121265,0.20081825,110100.0,110090.0,1.46686968]
[1748355124108,0.20081825,110100.0,110090.0,0.96643022]
[1748355124370,0.19173569,110100.0,110090.0,1.25791022]
[1748355124585,0.22503569,110100.0,110090.0,1.44866323]
[1748355125030,0.22503569,110100.0,110090.0,1.44865875]
[1748355125264,0.22503569,110100.0,110090.0,1.46865875]
[1748355125705,0.22503569,110100.0,110090.0,1.47774214]
[1748355126570,0.22503569,110100.0,110090.0,1.28698921]
[1748355126833,0.21595304,110100.0,110090.0,1.46865875]
[1748355127280,0.21595304,110100.0,110090.0,1.27786574]
[1748355127957,0.24755304,110100.0,110090.0,1.27786574]
[1748355128207,0.24755304,110100.0,110090.0,0.89326574]
[1748355128467,0.35314784,110100.0,110090.0,0.03084123]
[1748355128726,0.35314784,110100.0,110090.0,0.02]
[1748355132437,0.33860699,110100.0,110090.0,0.45137056]
[1748355132650,0.33860699,110100.0,110090.0,0.02]
[1748355132868,0.21595304,110100.0,110090.0,0.79910247]
[1748355133122,0.21595304,110100.0,110090.0,1.13910247]
[1748355133590,0.18265304,110100.0,110090.0,1.32985548]
[1748355133858,0.18265304,110100.0,110090.0,1.34978911]
[1748355134083,0.19173552,110100.0,110090.0,1.44278911]
[1748355134518,0.01916422,110100.0,110090.0,1.21727601]
[1748355134789,0.0282467,110100.0,110090.0,1.50867601]
[1748355135044,0.2189823,110100.0,110090.0,1.50867601]
[1748355135298,0.2189823,110100.0,110090.0,1.50868018]
[1748355135554,0.2189823,110100.0,110090.0,1.49051423]
[1748355135816,0.1917356,110100.0,110090.0,0.82600744]
[1748355136064,0.18265304,110100.0,110090.0,1.25738291]
[1748355136332,0.18265304,110100.0,110090.0,1.24292196]
[1748355136591,0.18265304,110100.0,110090.0,1.43367489]
[1748355136841,0.18265304,110100.0,110090.0,1.84635966]
[1748355137865,0.20081775,110100.0,110090.0,1.86452561]
[1748355138126,0.21898239,110100.0,110090.0,1.85544288]
[1748355138947,0.02824638,110100.0,110090.0,4.53944083]
[1748355139151,0.02824621,110100.0,110090.0,4.83080083]
[1748355139431,0.001,110100.0,110090.0,1.90436883]
[1748355139702,0.21796267,110110.0,110100.0,0.19981792]
[1748355139955,0.20888143,110110.0,110100.0,1.74233255]
[1748355140190,0.19980002,110110.0,110100.0,1.72048986]
[1748355140418,0.19980002,110110.0,110100.0,1.72957234]
[1748355141055,0.19980002,110110.0,110100.0,2.12957234]
[1748355141500,0.19980002,110110.0,110100.0,1.88527442]
[1748355141717,0.19980002,110110.0,110100.0,1.8943569]
[1748355141956,0.20180002,110110.0,110100.0,1.8943569]
[1748355142195,0.02016307,110110.0,110100.0,2.42696717]
[1748355142413,0.03024481,110110.0,110100.0,2.45726717]
[1748355142637,0.22096317,110110.0,110100.0,2.0481851]
[1748355142870,0.22096317,110110.0,110100.0,2.0178851]
[1748355143363,0.22096317,110110.0,110100.0,2.02696725]
[1748355143584,0.22096317,110110.0,110100.0,2.0178851]
[1748355143804,0.22096317,110110.0,110100.0,2.02696733]
[1748355144326,0.22096317,110110.0,110100.0,2.03604948]
[1748355145056,0.22096317,110110.0,110100.0,2.0360489]
[1748355145718,0.003,110110.0,110100.0,2.0360489]
[1748355145942,0.003,110110.0,110100.0,2.0689489]
[1748355146405,0.02116241,110110.0,110100.0,2.0689489]
[1748355147331,0.01916241,110110.0,110100.0,2.4360489]
[1748355147556,0.01008108,110110.0,110100.0,2.4360489]
[1748355147779,0.0156364,110120.0,110110.0,0.24158101]
[1748355147998,0.02471674,110120.0,110110.0,4.08265561]
[1748355148436,0.03379724,110120.0,110110.0,4.48265561]
[1748355148646,0.02471674,110120.0,110110.0,5.10721161]
[1748355148854,0.03579724,110120.0,110110.0,4.48113561]
[1748355149067,0.04487783,110120.0,110110.0,3.77610461]
[1748355149297,0.24465963,110120.0,110110.0,2.0241766]
[1748355149520,0.2484182,110120.0,110110.0,1.6405526]
[1748355149769,0.2794182,110120.0,110110.0,1.83127096]
[1748355149987,0.2794182,110120.0,110110.0,1.45481033]
[1748355150230,0.2794182,110120.0,110110.0,1.46565262]
[1748355150466,0.2774182,110120.0,110110.0,1.87473428]
[1748355150678,0.26833737,110120.0,110110.0,0.54261252]
[1748355150897,0.35939132,110120.0,110110.0,0.05070543]
[1748355151135,0.37393217,110120.0,110110.0,0.01284229]
[1748355151552,0.37393217,110120.0,110110.0,0.49029175]
[1748355151976,0.37393217,110120.0,110110.0,0.01184229]
[1748355152399,0.37393217,110120.0,110110.0,0.01084229]
[1748355152822,0.26815905,110110.0,110100.0,0.81744946]
[1748355153039,0.359213,110110.0,110100.0,0.90850341]
[1748355153242,0.34467215,110110.0,110100.0,0.90850341]
[1748355153659,0.359213,110110.0,110100.0,0.90850341]
[1748355153864,0.359213,110110.0,110100.0,0.90950341]
[1748355154086,0.359213,110110.0,110100.0,0.86188282]
[1748355154322,0.27178151,110110.0,110100.0,0.86388282]
[1748355154507,0.26269994,110110.0,110100.0,0.86388282]
[1748355156402,0.21541804,110120.0,110110.0,0.34]
[1748355156611,0.24551804,110120.0,110110.0,0.86088282]
[1748355157442,0.24551804,110120.0,110110.0,0.52088282]
[1748355157855,0.24551804,110120.0,110110.0,0.70251936]
[1748355158065,0.22449837,110120.0,110110.0,0.72068259]
[1748355158290,0.23357937,110120.0,110110.0,0.729764]
[1748355158525,0.22449895,110120.0,110110.0,0.7116011]
[1748355158737,0.23723745,110120.0,110110.0,1.06244429]
[1748355158948,0.23723745,110120.0,110110.0,1.47152595]
[1748355159160,0.23723745,110120.0,110110.0,1.48060752]
[1748355159598,0.23723745,110120.0,110110.0,1.46244429]
[1748355159816,0.07377848,110120.0,110110.0,1.47152578]
[1748355160025,0.04287848,110120.0,110110.0,1.48968835]
[1748355160244,0.0156364,110120.0,110110.0,1.4896868]
[1748355160458,0.02471666,110120.0,110110.0,3.62905943]
[1748355160667,0.0156364,110120.0,110110.0,3.62905943]
[1748355160877,0.03379716,110120.0,110110.0,3.59426143]
[1748355161104,0.0156364,110120.0,110110.0,3.59426143]
[1748355161320,0.02471674,110120.0,110110.0,3.59426143]
[1748355161750,0.0695686,110130.0,110120.0,0.20886206]
[1748355161990,0.06956844,110130.0,110120.0,3.07377807]
[1748355162201,0.04232932,110130.0,110120.0,3.43908317]
[1748355162449,0.04232932,110130.0,110120.0,3.83908317]
[1748355162653,0.05140883,110130.0,110120.0,3.85993819]
[1748355162873,0.05140892,110130.0,110120.0,3.95099214]
[1748355163090,0.26040042,110130.0,110120.0,2.85366536]
[1748355163313,0.11179671,110130.0,110120.0,2.31827578]
[1748355163523,0.08355709,110130.0,110120.0,2.31827578]
[1748355163749,0.06063669,110130.0,110120.0,2.31827578]
[1748355163969,0.05355709,110130.0,110120.0,2.31927578]
[1748355164161,0.06263677,110130.0,110120.0,2.31927578]
[1748355164377,0.06063677,110130.0,110120.0,2.31927578]
[1748355164816,0.06063677,110130.0,110120.0,2.32027578]
[1748355165058,0.05155709,110130.0,110120.0,2.32943574]
[1748355165473,0.06063677,110130.0,110120.0,2.32943574]
[1748355166095,0.06063669,110130.0,110120.0,2.32943574]
[1748355166543,0.29310059,110130.0,110120.0,1.11891119]
[1748355166753,0.28402099,110130.0,110120.0,1.61246432]
[1748355166964,0.27494131,110130.0,110120.0,2.23450365]
[1748355167188,0.27494131,110130.0,110120.0,2.25266482]
[1748355167405,0.27494131,110130.0,110120.0,1.85266482]
[1748355167711,0.27494131,110130.0,110120.0,1.83450365]
[1748355167942,0.27494131,110130.0,110120.0,1.8435844]
[1748355168177,0.27494131,110130.0,110120.0,1.8435444]
[1748355168410,0.27494131,110130.0,110120.0,1.21393381]
[1748355168635,0.25678121,110130.0,110120.0,1.64376268]
[1748355169067,0.25678121,110130.0,110120.0,1.83446373]
[1748355169275,0.25678121,110130.0,110120.0,1.83438469]
[1748355169489,0.25678121,110130.0,110120.0,1.82530377]
[1748355169939,0.25678121,110130.0,110120.0,1.64368372]
[1748355170162,0.28238121,110130.0,110120.0,0.62352485]
[1748355170380,0.37343516,110130.0,110120.0,0.46969201]
[1748355170606,0.37343516,110130.0,110120.0,0.76073201]
[1748355170819,0.38797601,110130.0,110120.0,0.46969201]
[1748355171053,0.38797601,110130.0,110120.0,0.80869201]
[1748355171273,0.38797601,110130.0,110120.0,0.80769201]
[1748355171495,0.37343516,110130.0,110120.0,0.80769201]
[1748355172146,0.37443516,110130.0,110120.0,0.80769201]
[1748355173054,0.37643516,110130.0,110120.0,0.80769201]
[1748355175955,0.37643516,110130.0,110120.0,0.85528955]
[1748355176853,0.37643516,110130.0,110120.0,0.37786314]
[1748355177071,0.37643516,110130.0,110120.0,0.85528955]
[1748355180971,0.07317766,110130.0,110120.0,1.06415161]
[1748355181200,0.04047766,110130.0,110120.0,3.24831856]
[1748355181487,0.24024106,110130.0,110120.0,1.47428062]
[1748355181680,0.27184106,110130.0,110120.0,1.28078067]
[1748355181952,0.30494106,110130.0,110120.0,1.28078067]
[1748355182158,0.30294106,110130.0,110120.0,0.86974967]
[1748355182384,0.30294106,110130.0,110120.0,1.24008955]
[1748355182859,0.30194106,110130.0,110120.0,1.24008955]
[1748355183071,0.30194106,110130.0,110120.0,1.24108955]
[1748355183916,0.39299501,110130.0,110120.0,0.37986314]
[1748355184147,0.39299501,110130.0,110120.0,0.342]
[1748355184363,0.40753586,110130.0,110120.0,0.342]
[1748355184793,0.40753586,110130.0,110120.0,0.002]
[1748355185243,0.40753586,110130.0,110120.0,0.47942641]
[1748355185459,0.40753586,110130.0,110120.0,0.49842641]
[1748355185881,0.40753586,110130.0,110120.0,0.58848036]
[1748355186525,0.40753586,110130.0,110120.0,0.02]
[1748355186733,0.41053586,110130.0,110120.0,0.02]
[1748355187155,0.41961058,110130.0,110120.0,0.02]
[1748355188318,0.41053586,110130.0,110120.0,0.49742641]
[1748355192065,0.41053586,110130.0,110120.0,0.02]
[1748355194711,0.41053586,110130.0,110120.0,0.10374264]
[1748355194895,0.41053586,110130.0,110120.0,0.58116905]
[1748355195072,0.41053586,110130.0,110120.0,0.10374264]
[1748355195234,0.41053586,110130.0,110120.0,0.02]
[1748355196490,0.46504586,110130.0,110120.0,0.02]
[1748355198193,0.26489961,110110.0,110100.0,0.01085262]
[1748355198430,0.66133441,110110.0,110100.0,0.01085262]
[1748355199107,0.67511834,110110.0,110100.0,0.01085262]
[1748355199549,0.67511834,110110.0,110100.0,0.01185262]
[1748355199980,0.67511834,110110.0,110100.0,0.01085262]
[1748355200167,0.68211834,110110.0,110100.0,0.01085262]
[1748355200661,0.39127834,110110.0,110100.0,0.01085262]
[1748355200893,0.39127834,110110.0,110100.0,0.06168052]
[1748355201329,0.39127834,110110.0,110100.0,0.01085262]
[1748355204476,0.37749441,110110.0,110100.0,0.48827903]
[1748355204925,0.36295356,110110.0,110100.0,0.48827903]
[1748355205599,0.35895356,110110.0,110100.0,0.48827903]
[1748355205823,0.36095356,110110.0,110100.0,0.48827903]
[1748355206507,0.35795356,110110.0,110100.0,0.48827903]
[1748355207001,0.35995356,110110.0,110100.0,0.48827903]
[1748355208781,0.35995356,110110.0,110100.0,0.01085262]
[1748355213514,0.35995356,110110.0,110100.0,0.48827903]
[1748355213740,0.35995356,110110.0,110100.0,0.01085262]
[1748355215046,0.29485356,110110.0,110100.0,1.01151997]
[1748355215262,0.21288143,110110.0,110100.0,0.78345997]
[1748355215473,0.21288143,110110.0,110100.0,1.07421997]
[1748355215474,0.20380002,110110.0,110100.0,1.07421997]
[1748355215716,0.20380002,110110.0,110100.0,0.60180693]
[1748355215928,0.20380002,110110.0,110100.0,1.08330262]
[1748355216138,0.20380002,110110.0,110100.0,1.42330262]
[1748355216349,0.20380002,110110.0,110100.0,1.43238518]
[1748355216562,0.19471836,110110.0,110100.0,1.14162518]
[1748355216770,0.18563654,110110.0,110100.0,1.13254262]
[1748355216986,0.18563654,110110.0,110100.0,0.95088958]
[1748355217201,0.02216323,110110.0,110100.0,1.64805394]
[1748355217415,0.21288159,110110.0,110100.0,1.44318314]
[1748355217842,0.20180002,110110.0,110100.0,1.15246314]
[1748355218259,0.20180002,110110.0,110100.0,1.44318314]
[1748355218962,0.002,110110.0,110100.0,1.64805394]
[1748355219194,0.21908121,110130.0,110120.0,0.34]
[1748355219429,0.21908121,110130.0,110120.0,1.25480494]
[1748355219885,0.21908121,110130.0,110120.0,1.26565188]
[1748355220114,0.21908121,110130.0,110120.0,1.32865188]
[1748355221931,0.21908121,110130.0,110120.0,1.31780494]
[1748355222393,0.22816138,110130.0,110120.0,1.50850582]
[1748355222623,0.23724131,110130.0,110120.0,1.49942499]
[1748355223081,0.22816138,110130.0,110120.0,1.32865188]
[1748355223328,0.22816138,110130.0,110120.0,1.31780494]
[1748355223743,0.22816138,110130.0,110120.0,1.49942499]
[1748355223976,0.04655709,110130.0,110120.0,1.50850591]
[1748355224210,0.07379637,110130.0,110120.0,2.45361894]
[1748355224653,0.07379637,110130.0,110120.0,2.46444919]
[1748355224895,0.25540066,110130.0,110120.0,2.45536877]
[1748355225575,0.25540066,110130.0,110120.0,1.88263818]
[1748355225576,0.23724139,110130.0,110120.0,1.88263818]
[1748355225789,0.22816138,110130.0,110120.0,0.90806178]
[1748355226013,0.22816138,110130.0,110120.0,1.20058641]
[1748355229631,0.22816138,110130.0,110120.0,1.20050641]
[1748355230788,0.38281533,110130.0,110120.0,0.34]
[1748355231044,0.38281533,110130.0,110120.0,0.81742641]
[1748355231541,0.38281533,110130.0,110120.0,0.88944023]
[1748355233127,0.38481533,110130.0,110120.0,0.88944023]
[1748355234289,0.23016138,110130.0,110120.0,0.88944023]
[1748355237842,0.26276138,110130.0,110120.0,0.88944023]
[1748355239912,0.23016138,110130.0,110120.0,1.07106028]
[1748355240130,0.23016138,110130.0,110120.0,0.88944023]
[1748355240805,0.23016138,110130.0,110120.0,1.0909786]
[1748355241026,0.23016138,110130.0,110120.0,0.96197763]
[1748355241268,0.23016138,110130.0,110120.0,0.90027763]
[1748355241520,0.23016138,110130.0,110120.0,1.28323763]
[1748355241739,0.23016138,110130.0,110120.0,1.27240023]
[1748355242633,0.23016138,110130.0,110120.0,0.93240023]
[1748355243314,0.26186138,110130.0,110120.0,0.54944023]
[1748355243537,0.38381533,110130.0,110120.0,0.48827754]
[1748355244047,0.38381533,110130.0,110120.0,0.47742641]
[1748355244273,0.32121533,110130.0,110120.0,0.47742641]
[1748355244506,0.23016138,110130.0,110120.0,0.6789848]
[1748355244743,0.22108121,110130.0,110120.0,1.11003875]
[1748355244966,0.22108121,110130.0,110120.0,0.9193377]
[1748355245897,0.22108121,110130.0,110120.0,0.9928187]
[1748355246119,0.24832131,110130.0,110120.0,1.19797617]
[1748355246409,0.24832131,110130.0,110120.0,1.74237508]
[1748355247109,0.24732131,110130.0,110120.0,1.25586817]
[1748355247300,0.24632131,110130.0,110120.0,1.74237517]
[1748355247757,0.24632131,110130.0,110120.0,2.13329458]
[1748355248025,0.24632131,110130.0,110120.0,2.14237525]
[1748355248251,0.24632131,110130.0,110120.0,2.15145584]
[1748355248671,0.24632131,110130.0,110120.0,2.13329458]
[1748355248903,0.23724147,110130.0,110120.0,1.75152995]
[1748355249123,0.23724147,110130.0,110120.0,1.42915195]
[1748355249362,0.23724147,110130.0,110120.0,1.71947195]
[1748355249809,0.23724147,110130.0,110120.0,1.901092]
[1748355250271,0.23724147,110130.0,110120.0,1.71947195]
[1748355250498,0.23724122,110130.0,110120.0,1.98511359]
[1748355250723,0.24632115,110130.0,110120.0,1.97603292]
[1748355253499,0.24632115,110130.0,110120.0,1.95221367]
[1748355253709,0.24632115,110130.0,110120.0,2.01214767]
[1748355254146,0.24632115,110130.0,110120.0,2.02122834]
[1748355255915,0.23724131,110130.0,110120.0,1.937367]
[1748355256132,0.23724131,110130.0,110120.0,1.45638595]
[1748355256338,0.23724131,110130.0,110120.0,1.928206]
[1748355256771,0.23724131,110130.0,110120.0,1.937287]
[1748355256975,0.22816138,110130.0,110120.0,1.92283041]
[1748355257421,0.22816138,110130.0,110120.0,1.93191133]
[1748355257638,0.22816138,110130.0,110120.0,1.54915133]
[1748355257841,0.22816138,110130.0,110120.0,1.93171133]
[1748355258059,0.22816138,110130.0,110120.0,1.94079208]
[1748355258747,0.22816138,110130.0,110120.0,1.92263041]
[1748355258956,0.22816138,110130.0,110120.0,1.91354941]
[1748355259180,0.22816138,110130.0,110120.0,1.92263041]
[1748355260102,0.22816138,110130.0,110120.0,0.367234]
[1748355260103,0.29196138,110130.0,110120.0,0.367234]
[1748355260322,0.29196138,110130.0,110120.0,1.10758641]
[1748355261060,0.25926138,110130.0,110120.0,1.10758641]
[1748355261281,0.26026138,110130.0,110120.0,1.10758641]